Cogmind - Beta 10.2 @@@ ROGUE MODE // 2021.09.02 @ 18:15:28 Player: tatata Result: Destroyed by G-47 Trooper with Particle Gun Performance ------------- Evolutions (3) 1500 Regions Visited (4) 800 Robots Destroyed (54) 270 Value Destroyed (2075) 2075 Prototype IDs (1) 20 Alien Tech Used (0) 0 Bonus (22) 22 TOTAL SCORE: 4687 Bonus ------- High Alert Combat Kills 22 Cogmind --------- Core Integrity 0/700 Matter 36/300 Energy 100/100 System Corruption 6% Temperature Cool (9) Movement Core (550) Ox10 Location -7/Factory Parts ------- > --- POWER (1) -------- (None) > --- PROPULSION (4) --- (None) > --- UTILITY (6) ------ Large Storage Unit Large Storage Unit Advanced Signal Interpreter Advanced Signal Interpreter > --- WEAPON (2) ------- (None) > --- INVENTORY (16) --- (None) Peak State ------------ > --- POWER ------------ Improved Ion Engine > --- PROPULSION ------- Aluminum Leg Aluminum Leg Improved Carbon-fiber Leg Improved Carbon-fiber Leg > --- UTILITY ---------- Improved Heat Sink Large Storage Unit Large Storage Unit Light Armor Plating > --- WEAPON ----------- Cooled Particle Cannon Minigun > --- INVENTORY -------- Ion Engine Light Nuclear Core Improved Carbon-fiber Leg Improved Carbon-fiber Leg Heat Sink Heavy Assault Rifle Missile Launcher [Rating: 27] Favorites ----------- Power Ion Engine Engine Ion Engine Power Core Light Nuclear Core Propulsion Aluminum Leg Treads Light Treads Leg Aluminum Leg Utility Large Storage Unit Device Improved Heat Sink Storage Large Storage Unit Processor Advanced Signal Interpreter Protection Light Armor Plating Weapon Minigun Energy Gun Small Laser Energy Cannon Cooled Particle Cannon Ballistic Gun Minigun Launcher Missile Launcher Special Weapon Remote Datajack Build | -11 -10 -9 -8 -7 ------- Run | Scr Mat Mat Mat Fac Slots Evolved 6 | . . 2 2 2 Power . | . . . . . Propulsion 2 | . . 1 1 . Utility 4 | . . 1 1 2 Weapon . | . . . . . Parts Attached 66 | 6 1 13 27 19 Power 7 | 1 . . 2 4 Engine 5 | 1 . . 1 3 Core 2 | . . . 1 1 Reactor . | . . . . . Propulsion 23 | 2 . 4 9 8 Treads 3 | . . . . 3 Leg 20 | 2 . 4 9 5 Wheel . | . . . . . Hover . | . . . . . Flight . | . . . . . Utility 19 | 1 1 5 8 4 Device 6 | . 1 1 4 . Storage 4 | 1 . 2 1 . Processor 2 | . . . . 2 Hackware . | . . . . . Protection 7 | . . 2 3 2 Artifact . | . . . . . Weapon 17 | 2 . 4 8 3 Energy Gun 5 | 1 . 1 3 . Energy Cannon 2 | . . . 2 . Ballistic Gun 8 | 1 . 3 3 1 Ballistic Cannon . | . . . . . Launcher 1 | . . . . 1 Special Weapon 1 | . . . . 1 Impact Weapon . | . . . . . Slashing Weapon . | . . . . . Piercing Weapon . | . . . . . Special Melee Weapon . | . . . . . Unidentified Prototypes 1 | . . . 1 . Parts Lost 45 | . . 4 16 25 Power 6 | . . . 1 5 Propulsion 18 | . . . 6 12 Utility 8 | . . 1 3 4 Weapon 13 | . . 3 6 4 Highest Loss Streak 12 | . . 2 5 12 Average Slot Usage (%) 93 | . 89 98 96 78 Engine 8 | . 14 11 6 4 Treads 1 | . . . . 5 Leg 30 | . 28 33 34 18 Device 10 | . 4 11 11 9 Storage 13 | . 14 11 14 15 Processor 1 | . . . . 7 Protection 8 | . . 9 9 5 Energy Gun 4 | . 14 7 1 . Ballistic Gun 12 | . 14 14 14 5 Naked Turns . | . . . . . Heaviest Build 51 | 12 13 31 51 49 Greatest Support 56 | 20 20 30 56 56 Greatest Overweight (x) 11 | 1 . 1 1 11 Average Overweight (x) . | . . . . . Largest Inventory Capacity 16 | 6 6 12 16 16 Average Capacity 11 | 5 6 9 13 16 Most Carried 13 | 6 6 10 13 12 Average Carried 8 | 3 5 9 10 6 Final Capacity 16 | 6 6 10 16 16 Final Carried 12 | 6 6 10 12 . Class Distribution -------------------- 63% | Scavenger-Mutant 36% | Mutant Dominant Class ---------------- Mutant | -10/Materials Mutant | -9/Materials Scavenger-Mutant | -8/Materials Scavenger-Mutant | -7/Factory Resources | -11 -10 -9 -8 -7 ----------- Run | Scr Mat Mat Mat Fac Matter Collected 1415 | 229 59 289 680 158 Remotely . | . . . . . Salvage Created 2329 | . 84 708 1226 311 Parts 125 | . 4 44 58 19 Haulers Intercepted . | . . . . . Recyclers Shooed 6 | . . 2 3 1 Parts Field Recycled . | . . . . . Retrieved Matter . | . . . . . Parts Self-Destructed . | . . . . . Prevented . | . . . . . Kills | -11 -10 -9 -8 -7 ------- Run | Scr Mat Mat Mat Fac Combat Hostiles Destroyed 48 | . 2 14 22 10 Guns 39 | . 2 13 19 5 Cannons 3 | . . . 3 . AOE 6 | . . 1 . 5 Classes Destroyed 10 | . 1 4 4 1 Worker 3 | . . 2 . 1 Builder 1 | . . 1 . . Tunneler 1 | . . . 1 . Recycler 1 | . . . 1 . Swarmer 4 | . . . . 4 Grunt 27 | . 2 8 16 1 Brawler 4 | . . 2 . 2 Duelist 3 | . . . 1 2 Sentry 8 | . . 4 3 1 Hunter 2 | . . . 2 . Best Kill Streak 9 | . 2 9 4 4 Combat Bots Only 7 | . 2 7 3 4 Max Kills in Single Turn 2 | . 1 2 1 2 Gunslinging . | . . . . . Exploded 2 | . . 1 . 2 Melee . | . . . . . Uniques/NPCs Destroyed . | . . . . . Combat | -11 -10 -9 -8 -7 -------- Run | Scr Mat Mat Mat Fac Damage Taken 6212 | . 148 647 2328 3089 Core 1105 | . 28 130 243 704 Absorbed by Shields . | . . . . . Core Remaining (%) 77 | 100 88 67 55 . Volleys Fired 186 | . 6 47 91 42 Largest 2 | . 2 2 2 2 Hottest 88 | . 60 65 88 88 Shots Fired 353 | . 12 93 178 70 Gun 323 | . 12 93 161 57 Cannon 17 | . . . 17 . Launcher 12 | . . . . 12 Special 1 | . . . . 1 Kinetic 238 | . 6 49 139 44 Thermal 94 | . 6 36 39 13 Explosive 12 | . . . . 12 Electromagnetic 8 | . . 8 . . Robot Hit Streak 24 | . 5 24 9 7 Robot Miss Streak 4 | . 3 2 4 4 Penetration Max . | . . . . . Secondary Targets 2 | . . . 2 . Max Gunslinging Chain 1 | . . . 1 . Shots Hit Robots 245 | . 8 76 113 48 Core Hits 113 | . 5 28 50 30 Critical Hits 3 | . . . 3 . Critical Kills 1 | . . . 1 . Critical Parts Destroyed 2 | . . . 2 . Melee Attacks . | . . . . . Impact . | . . . . . Slashing . | . . . . . Piercing . | . . . . . Sneak Attacks . | . . . . . Combat Hostiles . | . . . . . Follow-up Attacks . | . . . . . Damage Inflicted 4684 | . 85 1104 1949 1546 Guns 3308 | . 85 1024 1570 629 Cannons 379 | . . . 379 . Explosions 997 | . . 80 . 917 Melee . | . . . . . Ramming . | . . . . . Kinetic 2371 | . 30 574 1308 459 Thermal 1303 | . 55 437 641 170 Explosive 917 | . . . . 917 Electromagnetic 93 | . . 93 . . Impact . | . . . . . Slashing . | . . . . . Piercing . | . . . . . Highest Corruption 6 | . . . . 6 Average Corruption 5 | . . . . 5 Corruption Purged . | . . . . . Effects 21 | . . . . 21 Message Errors 3 | . . . . 3 Matter Fused 6 | . . . . 6 Energy Discharges 2 | . . . . 2 Data Loss (minor) 3 | . . . . 3 Data Loss (major) 1 | . . . . 1 Misfires 1 | . . . . 1 Targeting Errors 4 | . . . . 4 Weapon Failures 1 | . . . . 1 Overload Shots . | . . . . . Overflow Damage 40 | . . 14 16 10 Projectiles 16 | . . . 16 . Explosions 24 | . . 14 . 10 Melee . | . . . . . Knockbacks . | . . . . . Impact . | . . . . . Kinetic . | . . . . . Secondary . | . . . . . Self-Inflicted Damage 356 | . . 38 . 318 Shots 7 | . . 1 . 6 Rammed . | . . . . . Targets Rammed . | . . . . . Kicked . | . . . . . Crushed . | . . . . . Highest Temperature 39 | . 39 10 6 . Average Temperature 9 | . 21 3 3 . Received Heat Transfer 1686 | . 81 237 981 387 Siege Activations . | . . . . . Robots Corrupted . | . . . . . Combat Hostiles . | . . . . . Parts Fried 1 | . . 1 . . Impact Corruptions . | . . . . . Robots Melted . | . . . . . Combat Hostiles . | . . . . . Parts Melted 4 | . . 3 1 . Heat Transferred 2542 | . 125 900 1147 370 Parts Sabotaged . | . . . . . Parts Stolen . | . . . . . Parts Stripped . | . . . . . Power Chain Reactions 1 | . . 1 . . Missiles Intercepted . | . . . . . Alert | -11 -10 -9 -8 -7 ------- Run | Scr Mat Mat Mat Fac Peak Influence 463 | . 50 335 463 288 Initial 135 | . . 20 51 135 Average 179 | . 20 191 222 158 Maximum Alert Level 2 | . . 1 2 1 Low Security (%) 59 | 100 100 47 46 90 Level 1 37 | . . 52 47 9 Level 2 2 | . . . 6 . Level 3 . | . . . . . Level 4 . | . . . . . Level 5 . | . . . . . High Security . | . . . . . Max Security . | . . . . . Squads Dispatched 8 | . 3 . 3 2 Investigation 2 | . 1 . 1 . Extermination 1 | . . . . 1 Reinforcement 4 | . 2 . 2 . Assault . | . . . . . Garrison 1 | . . . . 1 Intercept . | . . . . . Construction Impeded . | . . . . . Haulers Reinforced . | . . . . . Stealth | -11 -10 -9 -8 -7 --------- Run | Scr Mat Mat Mat Fac Distress Signals 10 | . . 4 6 . Communications Jammed . | . . . . . Distress Signals . | . . . . . Times Spotted 86 | . 8 26 37 15 Peak Tracking Total 9 | . 3 4 7 9 Tactical Retreats 6 | . . 2 3 1 Traps | -11 -10 -9 -8 -7 ------- Run | Scr Mat Mat Mat Fac Traps Triggered 2 | . . . 1 1 Indirectly . | . . . . . Trap Hack Attempts . | . . . . . Triggered . | . . . . . Disarmed 1 | . 1 . . . Reprogrammed . | . . . . . Reused . | . . . . . Traps Extracted . | . . . . . Installed . | . . . . . Triggered . | . . . . . Machines | -11 -10 -9 -8 -7 ---------- Run | Scr Mat Mat Mat Fac Machines Disabled . | . . . . . Max in Single Turn . | . . . . . Garrison Access 1 | . . . . 1 Machines Sabotaged . | . . . . . Garrisons Compromised . | . . . . . Overloaded Fab Kills . | . . . . . Fab Network Shutdowns . | . . . . . Hacking | -11 -10 -9 -8 -7 --------- Run | Scr Mat Mat Mat Fac Machines Accessed 4 | . 1 2 . 1 Terminals 2 | . 1 1 . . Fabricators . | . . . . . Repair Stations . | . . . . . Recycling Units . | . . . . . Scanalyzers 1 | . . 1 . . Garrison Access 1 | . . . . 1 Total Hacks 15 | . 5 8 . 2 Successful 8 | . 2 5 . 1 Failed 7 | . 3 3 . 1 Catastrophic . | . . . . . Database Lockouts . | . . . . . Manual . | . . . . . Terminals 7 | . 5 2 . . Fabricators . | . . . . . Repair Stations . | . . . . . Recycling Units . | . . . . . Scanalyzers 6 | . . 6 . . Garrison Access 2 | . . . . 2 Terminal Hacks 2 | . 2 . . . Locate Traps 1 | . 1 . . . Disarm Traps 1 | . 1 . . . Fabricator Hacks . | . . . . . Repair Station Hacks . | . . . . . Recycling Unit Hacks . | . . . . . Scanalyzer 5 | . . 5 . . Insert Component 3 | . . 3 . . Analyze 2 | . . 2 . . Garrison Access Hacks 1 | . . . . 1 Seal Access 1 | . . . . 1 Unauthorized Hacks . | . . . . . Terminals . | . . . . . Fabricators . | . . . . . Repair Stations . | . . . . . Recycling Units . | . . . . . Scanalyzers . | . . . . . Garrison Access . | . . . . . Data Cores Recovered . | . . . . . Used . | . . . . . Hacking Detections 4 | . 1 2 . 1 Full Trace Events 2 | . 1 1 . . Feedback Events . | . . . . . Feedback Blocked . | . . . . . Robot Schematics Acquired . | . . . . . Robots Built . | . . . . . Matter . | . . . . . Time . | . . . . . Total Robot Build Rating . | . . . . . Part Schematics Acquired 2 | . . 2 . . Parts Built . | . . . . . Matter . | . . . . . Time . | . . . . . Total Part Build Rating . | . . . . . Parts Repaired . | . . . . . Time . | . . . . . Parts Recycled . | . . . . . Recycled Matter . | . . . . . Retrieved Matter . | . . . . . Retrieved Components . | . . . . . Parts Scanalyzed 2 | . . 2 . . Part Schematics Acquired 2 | . . 2 . . Parts Damaged . | . . . . . Bothacking | -11 -10 -9 -8 -7 ------------ Run | Scr Mat Mat Mat Fac Used RIF Installer . | . . . . . Robots Hacked 1 | . . . . 1 Non-combat . | . . . . . Combat 1 | . . . . 1 Robot Hacks Applied 1 | . . . . 1 parse_system 1 | . . . . 1 Relay Couplers Released . | . . . . . Robots Rewired . | . . . . . Allies Hacked . | . . . . . Hacks Repelled . | . . . . . Allies | -11 -10 -9 -8 -7 -------- Run | Scr Mat Mat Mat Fac Total Allies . | . . . . . Largest Group . | . . . . . Highest-Rated Group . | . . . . . Highest-Rated Ally . | . . . . . Total Orders . | . . . . . Ally Attacks . | . . . . . Total Damage . | . . . . . Kills . | . . . . . Allies Corrupted . | . . . . . Allies Melted . | . . . . . Intel | -11 -10 -9 -8 -7 ------- Run | Scr Mat Mat Mat Fac Robot Analysis Total . | . . . . . Derelict Logs Recovered . | . . . . . Drone Launches . | . . . . . Drone Recoveries . | . . . . . Exploration | -11 -10 -9 -8 -7 ------------- Run | Scr Mat Mat Mat Fac Turns Passed 2391 | 54 171 872 852 442 Spaces Moved 1062 | 33 107 422 327 173 Core 7 | 5 . . . 2 Treads 95 | . . . . 95 Legs 960 | 28 107 422 327 76 Wheels . | . . . . . Hover . | . . . . . Flight . | . . . . . Fastest Speed 50 | 50 120 120 120 120 Average Speed 133 | 119 120 128 130 159 Slowest Speed 600 | 150 120 150 150 600 Overloaded Moves . | . . . . . Propulsion Burnouts . | . . . . . Robots Hopped . | . . . . . Cave-ins Triggered 1 | . . . . 1 Exploration Rate (%) 22 | 3 27 44 29 8 Regions Visited 4 Branch Regions . Pre-discovered Areas . | . . . . . Known Exits Taken . | . . . . . Unknown Exits Taken 4 | 1 1 1 1 . Scrap Searched . | . . . . . Spaces Dug . | . . . . . Terrain Destroyed 60 | . . 2 3 55 Melee . | . . . . . Projectile 3 | . . . 3 . AOE 57 | . . 2 . 55 Terrain Rammed . | . . . . . Walls Destroyed . | . . . . . Machines Disabled . | . . . . . Actions | -11 -10 -9 -8 -7 --------- Run | Scr Mat Mat Mat Fac Total 1709 | 44 139 669 586 271 Wait 315 | . 18 159 106 32 Move 1058 | 32 106 421 326 173 Hop . | . . . . . Pick Up 55 | 6 4 15 25 5 Fast Attach 22 | 6 1 7 6 2 Attach 41 | . . 5 19 17 Detach 1 | . . 1 . . Swap 3 | . . 1 2 . Drop 28 | . 4 13 11 . Fire 186 | . 6 47 91 42 Melee . | . . . . . Ram . | . . . . . Kick . | . . . . . Crush . | . . . . . Escape Stasis . | . . . . . Rewire . | . . . . . Trap . | . . . . . Miscellaneous . | . . . . . Route ------- -11/Scrapyard -10/Materials (discovered 2 exits: *Mat / [*Min]) -9/Materials -8/Materials -7/Factory History --------- Turn | Location | Event 29 | -11/Scrapyard | Discovered new exit (range 16) 55 | -11/Scrapyard | Entered Materials 125 | -10/Materials | Discovered new exit (range 7) 208 | -10/Materials | Discovered new exit (range 16) 226 | -10/Materials | Entered another Materials area 226 | -9/Materials | Evolved 2 slots: Propulsion x1, Utility x1 331 | -9/Materials | Build established: Mutant 508 | -9/Materials | Destroyed 7 combat bots 997 | -9/Materials | Build established: Scavenger-Mutant 1020 | -9/Materials | Discovered new exit (range 8) 1098 | -9/Materials | Entered another Materials area 1098 | -8/Materials | Evolved 2 slots: Propulsion x1, Utility x1 1609 | -8/Materials | Lost 4 parts (1p1n2u) 1711 | -8/Materials | Lost 5 parts (2n1u2w) 1794 | -8/Materials | Lost 3 parts (2n1w) 1921 | -8/Materials | Lost 3 parts (1n2w) 1946 | -8/Materials | Discovered new exit (range 4) 1950 | -8/Materials | Entered Factory 1950 | -7/Factory | Evolved 2 slots: Utility x2 2009 | -7/Factory | Lost 3 parts (1p2n) 2099 | -7/Factory | Garrison activated, responded to threat 2160 | -7/Factory | Crushed by falling debris 2191 | -7/Factory | Lost 8 parts (1p3n2u2w) 2319 | -7/Factory | Core integrity fell below 50% 2383 | -7/Factory | Core integrity fell below 20% 2392 | -7/Factory | Destroyed by G-47 Trooper with Particle Gun Last Messages --------------- 02332_ Lgt. Treads destroyed. 02332_ Imp. Carbon-fiber Leg destroyed. 02333_ U-05 Engineer lays Concrete. 02335_ System corrupted: Energy discharge (-30). 02335_ R-06 Scavenger collects Lgt. Nuclear Core. 02335_ U-05 Engineer lays Concrete. 02341_ The unstable cave ceiling collapses. 02341_ Heat Sink destroyed. 02342_ U-05 Engineer lays Concrete. 02345_ K-01 Serf collects debris. 02346_ U-05 Engineer lays Concrete. 02350_ System corrupted: Component data lost. 02351_ U-05 Engineer lays Concrete. 02352_ Remote Datajack destroyed. 02353_ U-05 Engineer lays Concrete. 02355_ Lgt. Nuclear Core destroyed. 02363_ Lgt. Treads destroyed. 02379_ Adv. Treads destroyed. 02381_ System corrupted: Matter fused (-6). 02389_ Lgt. Ion Engine destroyed. Map ----- +----------------------------------------------------+ | ?????????????????????????????????????????????????? | | ?????????????????????????????????????????????????? | | ?????????????????????????????????????????????????? | | ?????????????????????????????????????????????????? | | ?????????????????????????????????????????????????? | | ?????????????????????????????????????????????????? | | ?????????????????????????????????????????????????? | | ?????????????????????????????????????????????????? | | ?????????????????????????????????????????????????? | | ?????????????????????????????????????????????????? | | ?????????????????????????????????????????????????? | | ?????????????????????????????????????????????????? | | ?????????????????????????????????????????????????? | | ?????????????????????????????????????????????????? | | ?????????????????????????????????????????????????? | | ?????????????????????????????????????????????????? | | ?????????????????????????????????????????????????? | | ?????????????????????????????????????????????????? | | ?????????????????????????????????????????????????? | | ?????????????????????????????????????????????????? | | ?????????????????????????????????????????????????? | | ?????????????????????????????????????????????????? | | ?????????????????????????????????????????????????? | | ?????????????????????????????????????????????????? | | ??????????????#########+################?????????? | | ????????????# @ #?????????? | | ????????????# p l #?????????? | | ????????????# #?????????? | | ????????????# g #?????????? | | ????????????# g #??????#??? | | ????????????###################### #???? ?? | | ?????????????????????????????????# #??? ? | | ?????????????????????????????????# ### | | ?????????????????????????????????# | | ?????????????????????????????????# | | ??????????????????? ???????????# | | ??????????????????? ??????????# | | ?????????????????? #?????????# | | ????????????????? ########## "" "" "" "? | | ????????????????? "" "" ""???? | | ????????????????? """ """ ""???? | | ????????????????? # """ """?"????? | | ???????????????? """ """ ""???? | | ???????????????? ?? | | ??????????????? ! ?? | | ??????????????? ?? | | ??????????????? ###############+??? | | ??????????????? #? #????????? | | ??????????????? # #????????? | | ??????????????# % # #????????? | +----------------------------------------------------+ Best States ------------- Heat Dissipation 58 Energy Generation 14 Energy Capacity 265 Matter Stores 300 Matter Capacity 300 Sight Range 16 Terrain Scan Density 10 Armor Coverage 375 Core Shielding 20 Evasion (%) 40 Recoil Reduction 2 Item Schematics ----------------- Grenade Launcher | -9/Materials | Scanalyzed Aluminum Leg | -9/Materials | Scanalyzed Robot Schematics ------------------ None Fabricated ------------ Nothing Alien Tech Used ----------------- None Achievements -------------- Maybe Next Time I'll Detach My Launcher Challenges ------------ None Game ------ Seed GravmagVisualDoublenader Manual? 0 Play Time 00:32:16 Cumulative 46.4 hours Start 2021.09.02 @ 17:42:15 End 2021.09.02 @ 18:15:28 Sessions 1 Manual Loads 0 Difficulty Rogue Special Mode None Game No. 55 Rogue 53 Adventurer 0 Explorer 2 Win Type - Total 0 Types 0/0/0/0/0/0/0/0/0 Lore% 33 Gallery% 33 Achievement% 21 Wizard Run 0 Options --------- ASCII 0 Keyboard 0 Movement Mouse Keybinds 0 Fullscreen 1 Font 12/Fuzzy Map View 83x54 Tactical HUD 1 Map Filters NONE Filters NONE Steam 1 RUN: 68321977-1b26-403f-b87b-ac7810c606e1